Cogmind - Beta 15 @@@ ROGUE MODE // 2025.06.01 @ 14:51:21 // Winter2019/RPGLIKE Player: Jack Result: Destroyed by CM-2AG(E) with Gauss Rifle Performance ------------- Evolutions (0) 0 Regions Visited (3) 600 Robots Destroyed (14) 70 Value Destroyed (357) 357 Prototype IDs (1) 20 Alien Tech Used (0) 0 Bonus (0) 0 TOTAL SCORE: 1047 Bonus ------- None Cogmind --------- Core Integrity 0/600 Matter 300/300 Energy 250/250 System Corruption 0% Temperature Cool (39) Movement Flying (40) Location -8/Scraptown Parts ------- > --- POWER (1) -------- Ion Engine > --- PROPULSION (2) --- Flight Unit > --- UTILITY (1) ------ (None) > --- WEAPON (2) ------- Small Laser Hammer > --- INVENTORY (3) ---- Small Laser Scrap Shield Fragment (48) Peak State ------------ > --- POWER ------------ Ion Engine > --- PROPULSION ------- Flight Unit Flight Unit > --- UTILITY ---------- Backup Plating I > --- WEAPON ----------- Small Laser Small Laser > --- INVENTORY -------- Protomatter Hammer [Rating: 6] Favorites ----------- Power Ion Engine Engine Ion Engine Propulsion Flight Unit Flight Unit Flight Unit Utility Backup Plating I Device Heat Sink Protection Backup Plating I Weapon Small Laser Energy Gun Small Laser Impact Weapon Hammer Build | -11 -10 -10 -8 ------- Run | Yrd Mat Sub Scr Slots Evolved 2 | 2 . . . Power . | . . . . Propulsion 1 | 1 . . . Utility . | . . . . Weapon 1 | 1 . . . Parts Attached 8 | 1 6 1 . Power 1 | . 1 . . Engine 1 | . 1 . . Core . | . . . . Reactor . | . . . . Propulsion 2 | . 2 . . Treads . | . . . . Leg . | . . . . Wheel . | . . . . Hover . | . . . . Flight 2 | . 2 . . Utility 1 | . 1 . . Device 1 | . 1 . . Storage . | . . . . Processor . | . . . . Hackware . | . . . . Protection . | . . . . Artifact . | . . . . Weapon 4 | 1 2 1 . Energy Gun 3 | 1 2 . . Energy Cannon . | . . . . Ballistic Gun . | . . . . Ballistic Cannon . | . . . . Launcher . | . . . . Special Weapon . | . . . . Impact Weapon 1 | . . 1 . Slashing Weapon . | . . . . Piercing Weapon . | . . . . Special Melee Weapon . | . . . . Unidentified Prototypes . | . . . . Parts Lost 2 | . . 2 . Power . | . . . . Propulsion 1 | . . 1 . Utility 1 | . . 1 . Weapon . | . . . . Highest Loss Streak 1 | . . 1 . To Critical Strikes . | . . . . Average Backups 1 | . 1 1 1 Power . | . . . . Propulsion . | . . . . Utility . | . . . . Weapon . | . . 1 1 Tool/Special . | . . . . Unused Backups . | . . . . Power . | . . . . Propulsion . | . . . . Utility . | . . . . Weapon . | . . . . Tool/Special . | . . . . Average Slot Usage (%) 81 | . 83 82 66 Engine 15 | . 14 16 16 Flight 21 | . 21 24 16 Protection 9 | . 12 7 . Energy Gun 25 | . 31 18 16 Impact Weapon 6 | . . 13 16 Peak Build Rating 6 | 1 6 6 4 Average Rating 4 | . 5 4 4 On Entrance 2 | . 1 6 4 Naked Turns . | . . . . Heaviest Build 10 | 1 10 9 8 Greatest Support 13 | 3 13 13 9 Greatest Overweight (x) 1 | . 1 . . Average Overweight (x) . | . . . . Largest Inventory Capacity 3 | 3 3 3 3 Average Capacity 2 | 2 3 3 3 Most Carried 3 | . 3 2 2 Average Carried 1 | . 1 1 2 Final Capacity 3 | 3 3 3 3 Final Carried 2 | . 1 2 2 Class Distribution -------------------- 52% | Scavenger-Mutant 47% | Mutant Dominant Class ---------------- Scavenger-Mutant | -10/Materials Mutant | -10/Subcaves Mutant | -8/Scraptown Resources | -11 -10 -10 -8 ----------- Run | Yrd Mat Sub Scr Matter Collected 280 | 157 123 . . Remotely . | . . . . Salvage Created 298 | . 298 . . Parts 21 | . 20 1 . Haulers Intercepted . | . . . . Recyclers Shooed . | . . . . Parts Field Recycled . | . . . . Retrieved Matter . | . . . . Parts Self-Destructed 3 | . . 3 . Prevented . | . . . . Kills | -11 -10 -10 -8 ------- Run | Yrd Mat Sub Scr Combat Hostiles Destroyed 11 | . 9 2 . Guns 9 | . 9 . . Classes Destroyed 5 | . 4 1 . Builder 1 | . 1 . . Recycler 2 | . 2 . . Swarmer 3 | . 3 . . Grunt 6 | . 6 . . Subdweller 2 | . . 2 . Best Kill Streak 5 | . 5 1 . Combat Bots Only 3 | . 3 1 . Max Kills in Single Turn 1 | . 1 1 . Gunslinging . | . . . . Exploded . | . . . . Melee . | . . . . Uniques/NPCs Destroyed . | . . . . Combat | -11 -10 -10 -8 -------- Run | Yrd Mat Sub Scr Hostile Shots Fired 121 | . 62 41 18 Missed 42 | . 21 16 5 Hits 79 | . 41 25 13 Projectile 79 | . 41 25 13 Critical Strikes 1 | . . . 1 Damage Taken 1367 | . 487 513 367 Core 1132 | . 403 403 326 Absorbed by Shields . | . . . . Redirected to Core 592 | . 165 276 151 Core Remaining (%) 100 | 100 . . . Volleys Fired 58 | . 58 . . Largest 2 | . 2 . . Hottest 80 | . 80 . . Shots Fired 104 | . 104 . . Gun 104 | . 104 . . Cannon . | . . . . Launcher . | . . . . Special . | . . . . Kinetic . | . . . . Thermal 104 | . 104 . . Explosive . | . . . . Electromagnetic . | . . . . Robot Hit Streak 13 | . 13 . . Robot Miss Streak 3 | . 3 . . Penetration Max . | . . . . Secondary Targets . | . . . . Shots Hit Robots 72 | . 54 18 . Core Hits 23 | . 22 1 . Critical Kills . | . . . . Critical Parts Destroyed 2 | . . 2 . Critical Strikes 3 | . . 3 . Smash 3 | . . 3 . Melee Attacks 83 | . . 78 5 Impact 83 | . . 78 5 Slashing . | . . . . Piercing . | . . . . Sneak Attacks 2 | . . 2 . Combat Hostiles . | . . . . Follow-up Attacks . | . . . . Damage Inflicted 996 | . 612 384 . Guns 608 | . 608 . . Cannons . | . . . . Explosions . | . . . . Melee 384 | . . 384 . Ramming 4 | . 4 . . Kinetic . | . . . . Thermal 608 | . 608 . . Explosive . | . . . . Electromagnetic . | . . . . Impact 384 | . . 384 . Slashing . | . . . . Piercing . | . . . . Highest Corruption . | . . . . Average Corruption . | . . . . Corruption Purged . | . . . . Corruption Blocked . | . . . . Overload Shots . | . . . . Overflow Damage 62 | . . 62 . Projectiles . | . . . . Explosions . | . . . . Melee 62 | . . 62 . Knockbacks 2 | . . 2 . Impact 2 | . . 2 . Kinetic . | . . . . Secondary . | . . . . Self-Inflicted Damage 2 | . 2 . . Shots . | . . . . Rammed 1 | . 1 . . Targets Rammed 1 | . 1 . . Kicked . | . . . . Crushed . | . . . . Highest Temperature 54 | . 54 . . Average Temperature 11 | . 11 . . Received Heat Transfer 448 | . 201 150 97 Siege Activations . | . . . . Martial Activations . | . . . . Shielding Activations . | . . . . Robots Disrupted . | . . . . Combat Hostiles . | . . . . Robots Corrupted 2 | . . 2 . Combat Hostiles 2 | . . 2 . Parts Fried 1 | . . 1 . Impact Corruptions 3 | . . 3 . Robots Melted . | . . . . Combat Hostiles . | . . . . Parts Melted . | . . . . Heat Transferred 1375 | . 1375 . . Parts Sabotaged . | . . . . Parts Stolen . | . . . . Parts Stripped . | . . . . Power Chain Reactions . | . . . . Alert | -11 -10 -10 -8 ------- Run | Yrd Mat Sub Scr Maximum Alert Level . | . . . . Low Security (%) 100 | 100 100 . . Level 1 . | . . . . Level 2 . | . . . . Level 3 . | . . . . Level 4 . | . . . . Level 5 . | . . . . High Security . | . . . . Max Security . | . . . . Peak Influence 60 | . 60 . . Initial . | . . . . Average 13 | . 13 . . Influence Increases 281 | . 281 . . Destroy 0b10 Robot/C 180 | . 180 . . Destroy 0b10 Robot/NC 15 | . 15 . . Destroy Leader 50 | . 50 . . Successful Hack 6 | . 6 . . Partial Spotted 15 | . 15 . . Lose Combat Pursuer 15 | . 15 . . Influence Decreases 281 | . 245 36 . Entered New Map 18 | . . 18 . Time Decay 263 | . 245 18 . Squads Dispatched 3 | . 3 . . Investigation 1 | . 1 . . Extermination . | . . . . Reinforcement 2 | . 2 . . Assault . | . . . . Garrison . | . . . . Intercept . | . . . . Searches Triggered . | . . . . Construction Impeded . | . . . . Haulers Reinforced . | . . . . Active Scanning Responses . | . . . . Cargo Convoy Interrupts . | . . . . Stealth | -11 -10 -10 -8 --------- Run | Yrd Mat Sub Scr Distress Signals . | . . . . Communications Jammed . | . . . . Distress Signals . | . . . . Times Spotted 34 | . 21 2 11 Peak Tracking Total 15 | . 5 2 15 Tactical Retreats 1 | . 1 . . Traps | -11 -10 -10 -8 ------- Run | Yrd Mat Sub Scr Traps Triggered 1 | . 1 . . Indirectly . | . . . . Trap Hack Attempts . | . . . . Triggered . | . . . . Disarmed . | . . . . Reprogrammed . | . . . . Reused . | . . . . Traps Extracted . | . . . . Installed . | . . . . Triggered . | . . . . Machines | -11 -10 -10 -8 ---------- Run | Yrd Mat Sub Scr Machines Disabled 1 | . . . 1 Max in Single Turn 1 | . . . 1 Machines Repaired . | . . . . Machines Dismantled . | . . . . Machines Sabotaged . | . . . . Overloaded Fab Kills . | . . . . Hacking | -11 -10 -10 -8 --------- Run | Yrd Mat Sub Scr Machines Accessed 4 | . 3 . 1 Terminals 2 | . 2 . . Fabricators . | . . . . Repair Stations 1 | . 1 . . Recycling Units . | . . . . Scanalyzers . | . . . . Garrison Access . | . . . . Total Hacks 15 | . 6 . 9 Successful 11 | . 2 . 9 Failed 4 | . 4 . . Catastrophic 1 | . 1 . . Database Lockouts . | . . . . Manual 3 | . 3 . . Terminals 3 | . 3 . . Fabricators . | . . . . Repair Stations 3 | . 3 . . Recycling Units . | . . . . Scanalyzers . | . . . . Garrison Access . | . . . . Terminal Hacks 9 | . . . 9 Record 9 | . . . 9 Fabricator Hacks . | . . . . Repair Station Hacks 1 | . 1 . . Refit 1 | . 1 . . Recycling Unit Hacks . | . . . . Scanalyzer . | . . . . Garrison Access Hacks . | . . . . Unauthorized Hacks 1 | . 1 . . Terminals 1 | . 1 . . Skim 1 | . 1 . . Fabricators . | . . . . Repair Stations . | . . . . Recycling Units . | . . . . Scanalyzers . | . . . . Garrison Access . | . . . . Data Cores Recovered . | . . . . Used . | . . . . Hacking Detections 2 | . 2 . . Full Trace Events . | . . . . Feedback Events . | . . . . Feedback Blocked . | . . . . Robot Schematics Acquired . | . . . . Robots Built . | . . . . Authchips . | . . . . Time . | . . . . Total Robot Build Rating . | . . . . Part Schematics Acquired 1 | . . . 1 Parts Built . | . . . . Authchips . | . . . . Time . | . . . . Total Part Build Rating . | . . . . Parts Repaired . | . . . . Time . | . . . . Parts Recycled . | . . . . Recycled Matter . | . . . . Retrieved Matter . | . . . . Retrieved Components . | . . . . Parts Scanalyzed . | . . . . Part Schematics Acquired . | . . . . Parts Damaged . | . . . . Bothacking | -11 -10 -10 -8 ------------ Run | Yrd Mat Sub Scr Used RIF Installer . | . . . . Robots Hacked . | . . . . Non-combat . | . . . . Combat . | . . . . Robot Hacks Applied . | . . . . Relay Couplers Released . | . . . . Fabnet Peak Effective % . | . . . . Robots Rewired . | . . . . Allies Hacked . | . . . . Hacks Repelled . | . . . . Allies | -11 -10 -10 -8 -------- Run | Yrd Mat Sub Scr Total Allies . | . . . . Largest Group . | . . . . Highest-Rated Group . | . . . . Highest-Rated Ally . | . . . . Total Orders . | . . . . Ally Attacks . | . . . . Total Damage . | . . . . Kills . | . . . . Allies Corrupted . | . . . . Allies Melted . | . . . . Intel | -11 -10 -10 -8 ------- Run | Yrd Mat Sub Scr Active Infowar (turns) . | . . . . Robot Analysis Total . | . . . . Derelict Logs Recovered 2 | . . 2 . Drone Launches . | . . . . Drone Recoveries . | . . . . Exploration | -11 -10 -10 -8 ------------- Run | Yrd Mat Sub Scr Turns Passed 1993 | 12 1045 718 218 Spaces Moved 1740 | 21 763 450 506 Core 379 | 21 358 . . Treads . | . . . . Legs . | . . . . Wheels . | . . . . Hover . | . . . . Flight 1361 | . 405 450 506 Fastest Speed 37 | 50 37 37 40 Average Speed 41 | 50 43 38 40 Slowest Speed 100 | 50 100 40 40 Overloaded Moves . | . . . . Propulsion Burnouts . | . . . . Robots Hopped 11 | . 11 . . Potential Cave-ins . | . . . . Cave-ins Triggered . | . . . . Exploration Rate (%) 41 | 3 91 24 49 Regions Visited 3 Branch Regions 2 Pre-discovered Areas 1 | . . 1 . Known Exits Taken . | . . . . Unknown Exits Taken 3 | 1 1 1 . Scrap Searched . | . . . . Spaces Dug 7 | . . 7 . Terrain Destroyed 7 | . . 7 . Melee 7 | . . 7 . Projectile . | . . . . AOE . | . . . . Terrain Rammed . | . . . . Walls Destroyed . | . . . . Machines Disabled . | . . . . Actions | -11 -10 -10 -8 --------- Run | Yrd Mat Sub Scr Total 2756 | 21 1364 858 513 Wait 834 | . 508 324 2 Move 1715 | 20 740 449 506 Hop 11 | . 11 . . Pick Up 6 | . 5 1 . Fast Attach 7 | 1 6 . . Attach . | . . . . Detach 1 | . 1 . . Swap 2 | . 1 1 . Drop 9 | . 9 . . Fire 58 | . 58 . . Melee 83 | . . 78 5 Ram 1 | . 1 . . Kick . | . . . . Crush . | . . . . Escape Stasis . | . . . . Rewire . | . . . . Trap . | . . . . Miscellaneous 29 | . 24 5 . Route ------- -11/Scrapyard -10/Materials (discovered 5 exits: [*Mat x3] / [*Min] / [*Sub]) -10/Subcaves (discovered 2 exits: [*Mat] / *Scr) -8/Scraptown History --------- Turn | Location | Event 4 | -11/Scrapyard | Upgraded with Propulsion slot (x1) 4 | -11/Scrapyard | Upgraded with Weapon slot (x1) 5 | -11/Scrapyard | Discovered new exit (range 14) 13 | -11/Scrapyard | Entered Materials 307 | -10/Materials | Discovered new exit (range 13) 312 | -10/Materials | Build established: Mutant 514 | -10/Materials | Discovered new exit (range 12) 680 | -10/Materials | Build established: Scavenger-Mutant 963 | -10/Materials | Discovered new exit (range 16) 1017 | -10/Materials | Discovered new exit (range 15) 1057 | -10/Materials | Discovered new exit (range 4) 1058 | -10/Materials | Entered Subcaves 1059 | -10/Subcaves | Approached by a straggling Scientist 1060 | -10/Subcaves | Reached level 2 1062 | -10/Subcaves | Learned Materials emergency access door positions 1170 | -10/Subcaves | Shifting Twisted Machinery released Mak. Hacking Suite 1172 | -10/Subcaves | Shifting Twisted Machinery released Flamer 1235 | -10/Subcaves | Shifting Twisted Machinery released Sub. Monowheel 1272 | -10/Subcaves | Discovered new exit (range 5) 1364 | -10/Subcaves | Ambushed by Subdwellers from Twisted Machinery 1400 | -10/Subcaves | Core integrity fell below 50% 1446 | -10/Subcaves | A swath of the cavern ceiling suddenly collapsed 1718 | -10/Subcaves | Build established: Mutant 1758 | -10/Subcaves | Scientist uncovered a shortcut to Scraptown 1776 | -10/Subcaves | Entered Scraptown 1836 | -8/Scraptown | Visited Spacefarers 1854 | -8/Scraptown | Heard Great Nut preacher, LISTEN AND RECITE! 1856 | -8/Scraptown | Visited Cyclists 1965 | -8/Scraptown | Visited IN-MT5's Study 1983 | -8/Scraptown | Attacked by Scraptown defenders 1994 | -8/Scraptown | Core integrity fell below 20% 1994 | -8/Scraptown | Destroyed by CM-2AG(E) with Gauss Rifle Last Messages --------------- We need to treat MC to a good old peasant uprising. What better way to disrupt 0b10 operations than to enlist the help of the little guys who are already all over the place? I've got just the thing... 01979_ IN-MT5: "Overhelming numbers could provide quite an effective positive reinforcement loop..." 01983_ IN-MT5's Safe breached. 01983_ ANNOUNCEMENT: Intruder alert! Defend Scraptown! 01986_ Extracted schematic archive: IN-MT5's Pitchfork "Insurrection". 01990_ Triborg activates siege mode. 01990_ Siege Slug penetrates Wall. 01990_ Knocked back. 01991_ Bolt penetrates 32-AFP(h). 01992_ Penetrated by Siege Slug. 01992_ Knocked back. 01994_ Penetrated by Bolt. 01994_ Penetrated by Siege Slug. 01994_ Knocked back. 01994_ Penetrated by Siege Slug. 01994_ Critical hit (Burn: +50). Map ----- +----------------------------------------------------+ | ##?############ #??? ???????????????????????? | | ?????????????# #?? ?????????????????????????? | | ????????????### ### ########???????????????????? | | ????????????# ??????????????????? | | ???????##???# ??????????????????? | | ???????#"???# ??????????????????? | | ???????# ??# ??????????????????? | | ???????# ??# ??????????????????? | | ???????# ?# ############???????????????????? | | ???????# ?# #???????????????? ?????????? | | ?#""" ## # #???????????????# ???????? | | ?#" " # #???????????????# #????? | | ???????# #???????????????# #????? | | ???????# # #???????????????# #????? | | ???????#""" # #???????????????# ##???? | | ???????####?# #<